bitfinex/quotes_SOLUSD_20250422
["timestamp","ask_amount","ask_price","bid_price","bid_amount"]
[1745359618688,18.64964886,147.59,147.55,0.03]
[1745359618890,52.02192411,147.59,147.55,0.03]
[1745359619086,33.37227525,147.59,147.55,0.03]
[1745359619607,6.77185616,147.67,147.58,33.37227525]
[1745359619813,40.14413141,147.67,147.61,33.37227525]
[1745359620015,6.77185616,147.67,147.62,33.37227525]
[1745359620310,66.7445505,147.63,147.56,2.41387712]
[1745359622114,18.64964886,147.62,147.55,0.03]
[1745359622412,33.37227525,147.61,147.55,33.40227525]
[1745359622598,31.35365757,147.69,147.57,33.37227525]
[1745359622599,6.77277345,147.65,147.57,33.37227525]
[1745359622793,18.64964886,147.64,147.56,33.37227525]
[1745359622976,33.37227525,147.66,147.6,33.37227525]
[1745359622977,40.14473489,147.66,147.6,33.37227525]
[1745359623685,6.77002234,147.71,147.64,33.37227525]
[1745359623901,6.76970801,147.72,147.66,33.37227525]
[1745359624112,33.37227525,147.71,147.66,33.37227525]
[1745359624321,52.02192411,147.69,147.59,54.9]
[1745359624609,33.37227525,147.67,147.61,33.37227525]
[1745359624812,18.64964886,147.68,147.63,33.37227525]
[1745359625010,18.64964886,147.68,147.59,28.9]
[1745359625011,18.64964886,147.71,147.6,18.64964886]
[1745359625185,52.02192411,147.71,147.65,33.37227525]
[1745359625386,33.37227525,147.67,147.59,28.9]
[1745359625624,6.77139761,147.68,147.61,33.37227525]
[1745359625798,6.7710985,147.69,147.62,33.37227525]
[1745359626101,33.37227525,147.68,147.62,33.37227525]
[1745359626287,52.02192411,147.72,147.66,33.37227525]
[1745359626486,16.98446049,147.75,147.68,33.37227525]
[1745359626487,26.0,147.7,147.68,33.37227525]
[1745359626700,33.43527525,147.75,147.69,33.37227525]
[1745359626901,0.063,147.72,147.7,33.37227525]
[1745359627109,0.063,147.72,147.69,33.37227525]
[1745359627297,0.063,147.72,147.64,18.64964886]
[1745359627493,0.063,147.72,147.69,33.37227525]
[1745359627696,0.063,147.72,147.71,33.37227525]
[1745359628722,0.063,147.72,147.71,35.81084365]
[1745359629535,0.063,147.72,147.71,2.4385684]
[1745359630040,0.063,147.72,147.71,33.37227525]
[1745359630844,0.063,147.72,147.67,30.368]
[1745359631136,0.063,147.72,147.67,28.84]
[1745359631137,33.43527525,147.72,147.67,28.84]
[1745359631346,22.63767213,147.72,147.67,28.84]
[1745359631521,29.34505072,147.71,147.67,28.84]
[1745359632037,22.57467213,147.68,147.62,22.57467213]
[1745359632211,26.0,147.68,147.63,25.01978487]
[1745359632711,48.57467213,147.66,147.63,2.44511274]
[1745359632909,22.57467213,147.65,147.6,261.2]
[1745359633215,22.57467213,147.65,147.6,28.84]
[1745359633513,32.7723812,147.66,147.61,33.3854978]
[1745359633833,33.3854978,147.64,147.6,28.84]
[1745359634042,33.3854978,147.61,147.55,0.03]
[1745359634206,33.3854978,147.62,147.57,33.3854978]
[1745359634619,78.03514666,147.63,147.57,33.3854978]
[1745359634820,33.3854978,147.62,147.56,33.3854978]
[1745359635242,6.7723812,147.66,147.57,33.3854978]
[1745359635550,26.0,147.63,147.58,33.3854978]
[1745359636131,26.0,147.65,147.6,33.3854978]
[1745359636321,59.3854978,147.65,147.59,33.3854978]
[1745359636656,59.3854978,147.65,147.62,33.3854978]
[1745359636657,26.0,147.65,147.62,33.3854978]
[1745359637226,18.64964886,147.7,147.63,33.3854978]
[1745359637421,52.03514666,147.7,147.64,33.3854978]
[1745359637643,33.3854978,147.7,147.64,33.3854978]
[1745359637952,33.3854978,147.7,147.56,40.16235332]
[1745359637953,33.3854978,147.66,147.56,59.3854978]
[1745359638122,33.3854978,147.66,147.6,33.3854978]
[1745359638536,26.0,147.67,147.57,18.64964886]
[1745359638745,33.3854978,147.68,147.63,33.3854978]
[1745359638956,18.64964886,147.69,147.64,33.3854978]
[1745359639256,33.3854978,147.68,147.62,33.3854978]
[1745359639828,52.03514666,147.69,147.63,33.3854978]
[1745359640057,33.3854978,147.69,147.63,33.3854978]
[1745359640243,33.3854978,147.69,147.59,26.0]
[1745359640558,33.3854978,147.69,147.63,33.3854978]
[1745359640929,33.3854978,147.69,147.6,2.45416474]
[1745359641229,33.3854978,147.69,147.64,33.3854978]
[1745359641840,33.3854978,147.69,147.6,18.64964886]
[1745359642054,33.3854978,147.69,147.64,33.3854978]
[1745359642254,33.3854978,147.66,147.59,26.0]
[1745359642455,33.3854978,147.66,147.61,33.3854978]
[1745359642668,33.3854978,147.68,147.62,33.3854978]
[1745359643380,26.0,147.7,147.65,33.3854978]
[1745359643558,59.3854978,147.7,147.64,33.3854978]
[1745359643758,33.3854978,147.69,147.63,33.3854978]
[1745359643965,59.3854978,147.7,147.64,33.3854978]
[1745359644354,33.3854978,147.68,147.62,33.3854978]
[1745359644671,59.3854978,147.7,147.64,33.3854978]
[1745359644968,33.3854978,147.69,147.63,33.3854978]
[1745359645371,33.3854978,147.69,147.64,33.3854978]
[1745359645372,18.64964886,147.69,147.64,33.3854978]
[1745359645677,26.0,147.7,147.6,18.64964886]
[1745359645872,26.0,147.7,147.65,33.3854978]
[1745359646256,78.03514666,147.69,147.62,33.3854978]
[1745359646457,78.03514666,147.69,147.63,33.3854978]
[1745359647075,26.0,147.69,147.64,33.3854978]
[1745359647875,26.0,147.69,147.59,26.0]
[1745359648056,26.0,147.66,147.59,33.3854978]
[1745359648246,33.3854978,147.68,147.62,33.3854978]
[1745359648671,59.3854978,147.66,147.57,28.84]
[1745359648859,33.3854978,147.65,147.59,33.3854978]
[1745359649189,33.3854978,147.64,147.58,33.3854978]
[1745359649767,52.03514666,147.65,147.59,33.3854978]
[1745359649958,58.80809156,147.65,147.59,33.3854978]
[1745359650266,26.0,147.66,147.6,33.3854978]
[1745359650474,33.3854978,147.65,147.59,33.3854978]
[1745359650870,33.3854978,147.64,147.58,33.3854978]
[1745359651269,52.03514666,147.65,147.59,33.3854978]
[1745359651591,28.84,147.71,147.63,33.3854978]
[1745359651881,28.84,147.71,147.65,33.3854978]
[1745359652056,40.21809295,147.72,147.65,33.3854978]
[1745359652256,26.0,147.7,147.65,33.3854978]
[1745359652456,26.0,147.69,147.65,33.3854978]
[1745359653063,18.71264886,147.72,147.67,33.3854978]
[1745359653288,0.063,147.72,147.68,22.57295431]
[1745359654075,0.063,147.72,147.7,22.57295431]
[1745359654281,0.063,147.72,147.69,22.57295431]
[1745359655576,18.71264886,147.72,147.63,32.1414]
[1745359655872,0.063,147.72,147.68,22.57295431]
[1745359656079,0.063,147.72,147.69,22.57295431]
[1745359656466,0.063,147.72,147.7,22.57295431]
[1745359656778,0.063,147.72,147.69,22.57295431]
[1745359657160,0.063,147.72,147.63,6.1414]
[1745359657161,22.57295431,147.71,147.63,6.1414]
[1745359657472,41.28560317,147.72,147.66,22.57295431]
[1745359657682,0.063,147.72,147.67,22.57295431]
[1745359657981,22.63595431,147.72,147.66,22.57295431]
[1745359658667,0.063,147.72,147.63,54.71435431]
[1745359658870,22.57295431,147.69,147.61,26.0]
[1745359659180,26.0,147.67,147.62,25.02844999]
[1745359659383,26.0,147.67,147.63,22.57295431]
[1745359659559,26.0,147.67,147.64,22.57295431]
[1745359659759,26.0,147.69,147.62,2.45549568]
[1745359659980,26.0,147.69,147.65,22.57295431]
[1745359660179,26.0,147.68,147.65,22.57295431]
[1745359660480,26.0,147.7,147.65,22.57295431]
[1745359660662,26.0,147.7,147.66,22.57295431]
[1745359661287,26.0,147.7,147.65,22.57295431]
[1745359661575,22.57295431,147.71,147.6,51.42454768]
[1745359661576,0.063,147.72,147.68,22.57295431]
[1745359661873,0.063,147.72,147.71,22.57295431]
[1745359662173,0.063,147.72,147.69,22.57295431]
[1745359662378,0.063,147.72,147.64,18.64964886]
[1745359662578,0.063,147.72,147.7,22.57295431]
[1745359663159,0.063,147.72,147.69,22.57295431]
[1745359663682,0.063,147.72,147.7,22.57295431]
[1745359664260,0.063,147.72,147.69,22.57295431]
[1745359664764,0.063,147.72,147.64,18.64964886]
[1745359664953,0.063,147.72,147.69,22.57295431]
[1745359665768,0.063,147.72,147.64,18.64964886]
[1745359665973,26.0,147.7,147.61,18.64964886]
[1745359666150,0.063,147.72,147.67,22.57295431]
[1745359666151,26.063,147.72,147.67,22.57295431]
[1745359666756,48.63595431,147.72,147.61,44.64964886]
[1745359666988,48.63595431,147.72,147.66,22.57295431]
[1745359667582,22.57295431,147.7,147.61,26.0]
[1745359667763,22.57295431,147.7,147.64,22.57295431]
[1745359668570,22.57295431,147.69,147.6,108.0]
[1745359668884,22.57295431,147.69,147.63,22.57295431]
[1745359669466,22.57295431,147.7,147.65,22.57295431]
[1745359670564,22.57295431,147.7,147.64,22.57295431]
[1745359670763,0.063,147.72,147.67,22.57295431]
[1745359670979,22.63595431,147.72,147.67,22.57295431]
[1745359671156,0.063,147.72,147.68,22.57295431]
[1745359672086,0.063,147.72,147.7,22.57295431]
[1745359672395,0.063,147.72,147.69,22.57295431]
[1745359673387,0.063,147.72,147.68,22.57295431]
[1745359673892,0.063,147.72,147.63,82.0]
[1745359673893,48.63595431,147.72,147.63,82.0]
[1745359674187,26.0,147.71,147.67,22.57295431]
[1745359674791,26.0,147.71,147.66,22.57295431]
[1745359675172,26.0,147.68,147.59,82.0]
[1745359675377,22.57295431,147.66,147.58,6.1414]
[1745359675566,26.0,147.68,147.63,22.57295431]
[1745359675769,26.0,147.68,147.64,22.57295431]
[1745359676069,26.0,147.68,147.59,18.64964886]
[1745359676293,26.0,147.68,147.63,22.57295431]
[1745359676965,48.57295431,147.68,147.62,22.57295431]
[1745359677392,22.57295431,147.67,147.62,22.57295431]
[1745359677594,55.34450746,147.68,147.62,22.57295431]
[1745359677798,48.57295431,147.68,147.62,22.57295431]
[1745359677999,26.0,147.68,147.59,18.64964886]
[1745359678365,22.57295431,147.69,147.63,22.57295431]
[1745359678593,55.34351374,147.7,147.59,18.64964886]
[1745359678888,22.57295431,147.69,147.64,22.57295431]
[1745359679094,48.57295431,147.7,147.65,22.57295431]
[1745359679473,55.34344944,147.7,147.65,22.57295431]
[1745359679797,48.57295431,147.7,147.65,22.57295431]
[1745359680285,41.22260317,147.69,147.63,22.57295431]
[1745359680493,41.22260317,147.69,147.64,22.57295431]
[1745359681102,22.57295431,147.68,147.63,22.57295431]
[1745359681301,22.57295431,147.66,147.58,6.1414]
[1745359681596,48.57295431,147.67,147.61,22.57295431]
[1745359681782,22.57295431,147.66,147.61,22.57295431]
[1745359682310,41.22260317,147.65,147.59,2.4646906]
[1745359682511,22.57295431,147.63,147.57,22.57295431]
[1745359682711,22.57295431,147.62,147.57,22.57295431]
[1745359683176,22.57295431,147.62,147.55,0.03]
[1745359683177,22.57295431,147.62,147.58,2.46566218]
[1745359683377,22.57295431,147.59,147.58,2.46566218]
[1745359683598,41.22260317,147.59,147.58,2.46566218]
[1745359684004,47.99812996,147.59,147.58,2.46566218]
[1745359684201,55.57002996,147.59,147.58,2.46566218]
[1745359684398,55.57002996,147.59,147.55,0.03]
[1745359684399,44.64964886,147.56,147.55,0.03]
[1745359684584,89.79555748,147.56,147.55,0.03]
[1745359685198,18.64964886,147.55,147.53,0.03]
[1745359685397,41.22260317,147.54,147.53,0.03]
[1745359686077,48.00042613,147.54,147.53,0.03]
[1745359686284,18.64964886,147.53,147.52,0.03]
[1745359686487,18.64964886,147.51,147.5,0.063]
[1745359686686,18.64964886,147.5,147.46,0.03]
[1745359686916,63.79555748,147.5,147.46,0.03]
[1745359688106,48.00226418,147.5,147.46,0.03]
[1745359688507,41.22260317,147.5,147.46,0.03]
[1745359688713,76.59011849,147.5,147.46,0.03]
[1745359689003,44.64964886,147.47,147.46,0.03]
[1745359689216,67.22260317,147.47,147.46,0.03]
[1745359689519,28.78,147.51,147.46,0.03]
[1745359689686,41.22260317,147.5,147.46,0.03]
[1745359690020,41.22260317,147.48,147.46,0.03]
[1745359690212,41.22260317,147.47,147.46,0.03]
[1745359690512,48.57295431,147.49,147.46,0.03]
[1745359690710,26.0,147.49,147.46,0.03]
[1745359691317,22.57295431,147.5,147.46,0.03]
[1745359691498,22.57295431,147.49,147.46,0.03]
[1745359691696,67.22260317,147.47,147.46,0.03]
[1745359691907,10.35365757,147.5,147.46,0.03]
[1745359692108,22.57295431,147.47,147.46,0.03]
[1745359692616,41.22260317,147.47,147.46,0.03]
[1745359693118,67.22260317,147.47,147.46,0.03]
[1745359694099,26.0,147.47,147.46,0.03]
[1745359694604,67.22260317,147.47,147.46,0.03]
[1745359695018,5.67314746,147.51,147.46,0.03]
[1745359695190,26.0,147.49,147.46,0.03]
[1745359695813,22.57295431,147.48,147.46,0.03]
[1745359696304,48.57295431,147.49,147.46,0.03]
[1745359696797,41.22260317,147.47,147.46,0.03]
[1745359697206,18.64964886,147.47,147.46,0.03]
[1745359697508,67.22260317,147.47,147.46,0.03]
[1745359698689,44.64964886,147.47,147.46,0.03]
[1745359699116,67.22260317,147.47,147.46,0.03]
[1745359700209,74.00364338,147.47,147.46,0.03]
[1745359700504,26.0,147.47,147.46,0.03]
[1745359700905,44.64964886,147.49,147.46,0.03]
[1745359701104,22.57295431,147.51,147.46,0.03]
[1745359701399,41.22260317,147.47,147.46,0.03]
[1745359701816,44.64964886,147.47,147.46,0.03]
[1745359702107,67.22260317,147.47,147.46,0.03]
[1745359702517,48.57295431,147.47,147.46,0.03]
[1745359703418,74.00364338,147.47,147.46,0.03]
[1745359705403,67.22260317,147.47,147.46,0.03]
[1745359705602,44.64964886,147.47,147.46,0.03]
[1745359705799,67.22260317,147.47,147.46,0.03]
[1745359705994,48.57295431,147.47,147.46,0.03]
[1745359706307,0.063,147.55,147.46,22.60295431]
[1745359706499,0.063,147.55,147.54,22.57295431]
[1745359706814,0.063,147.55,147.49,22.57295431]
[1745359707014,22.63595431,147.55,147.5,22.57295431]
[1745359707205,0.063,147.55,147.54,22.57295431]
[1745359707918,0.063,147.55,147.53,22.57295431]
[1745359708095,26.063,147.55,147.5,22.57295431]
[1745359708296,48.63595431,147.55,147.49,22.57295431]
[1745359708499,26.063,147.55,147.47,1.6184]
[1745359708820,26.063,147.55,147.5,22.57295431]
[1745359708997,22.57295431,147.54,147.47,1.6184]
[1745359709200,48.57295431,147.54,147.47,1.6184]
[1745359709395,48.57295431,147.54,147.48,22.57295431]
[1745359709615,26.0,147.54,147.49,22.57295431]
[1745359709803,48.57295431,147.54,147.49,22.57295431]
[1745359710004,48.57295431,147.54,147.46,22.60295431]
[1745359710005,22.57295431,147.52,147.46,22.60295431]
[1745359710695,22.57295431,147.52,147.46,0.03]
[1745359710893,22.57295431,147.47,147.46,0.03]
[1745359711323,67.22260317,147.48,147.46,0.03]
[1745359711537,26.0,147.48,147.46,0.03]
[1745359711824,26.0,147.48,147.46,22.60295431]
[1745359712203,26.0,147.51,147.46,22.60295431]
[1745359713022,48.57295431,147.51,147.46,22.60295431]
[1745359713219,22.57295431,147.5,147.46,0.03]
[1745359714019,48.57295431,147.47,147.46,0.03]
[1745359714421,26.0,147.47,147.46,0.03]
[1745359715903,32.78104021,147.47,147.46,0.03]
[1745359716526,55.35399452,147.47,147.46,0.03]
[1745359716904,48.57295431,147.47,147.46,0.03]
[1745359717137,26.0,147.47,147.46,0.03]
[1745359717916,41.22260317,147.49,147.46,0.03]
[1745359717917,48.57295431,147.49,147.46,0.03]
[1745359718245,55.35315838,147.49,147.46,0.03]
[1745359718821,48.57295431,147.47,147.46,0.03]
[1745359719021,29.43921244,147.43,147.33,7.731]
[1745359719244,52.01216675,147.43,147.38,22.57295431]
[1745359719430,29.43921244,147.43,147.38,22.57295431]
[1745359719631,29.43921244,147.43,147.4,22.60295431]
[1745359719842,3.43921244,147.43,147.4,22.60295431]
[1745359720030,3.43921244,147.43,147.4,0.03]
[1745359720422,52.01216675,147.43,147.4,0.03]
[1745359720632,58.79507185,147.43,147.4,0.03]
[1745359720854,22.57295431,147.42,147.4,0.03]
[1745359721149,36.22211754,147.43,147.4,0.03]
[1745359721339,58.79507185,147.43,147.4,0.03]
[1745359721516,58.79508145,147.43,147.4,0.03]
[1745359721720,22.57295431,147.42,147.4,0.03]
[1745359722252,22.57295431,147.41,147.4,0.03]
[1745359722551,41.22260317,147.41,147.4,0.03]
[1745359723217,48.00640345,147.41,147.4,0.03]
[1745359724518,55.35675459,147.41,147.4,0.03]
[1745359724740,48.00640345,147.41,147.4,0.03]
[1745359725528,26.0,147.38,147.33,22.57295431]
[1745359726841,44.64964886,147.32,147.31,0.03]
[1745359727043,67.22260317,147.32,147.31,0.03]
[1745359727218,74.01054778,147.32,147.31,0.03]
[1745359728553,26.0,147.35,147.31,0.03]
[1745359728735,48.57295431,147.35,147.31,0.03]
[1745359728938,22.57295431,147.34,147.31,0.03]
[1745359729429,45.58370651,147.38,147.33,22.57295431]
[1745359729430,18.64964886,147.38,147.33,22.57295431]
[1745359729629,26.0,147.37,147.33,22.57295431]
[1745359730733,26.0,147.37,147.31,0.03]
[1745359730930,26.0,147.37,147.32,22.57295431]
[1745359731131,48.57295431,147.37,147.32,22.57295431]
[1745359731446,22.57295431,147.35,147.31,0.03]
[1745359731842,55.35922874,147.36,147.31,0.03]
[1745359732467,26.0,147.36,147.33,22.57295431]
[1745359732759,26.0,147.36,147.32,22.57295431]
[1745359733365,26.0,147.36,147.31,0.03]
[1745359733536,26.0,147.36,147.33,22.57295431]
[1745359733737,26.0,147.36,147.34,22.57295431]
[1745359734137,26.0,147.36,147.31,0.03]
[1745359734461,26.0,147.37,147.34,22.57295431]
[1745359734660,232.64,147.41,147.35,22.57295431]
[1745359734860,6.6152,147.43,147.32,8.1299]
[1745359734861,6.6152,147.43,147.36,22.57295431]
[1745359735025,18.64964886,147.44,147.37,22.57295431]
[1745359735232,22.57295431,147.41,147.36,22.57295431]
[1745359735434,6.78371948,147.42,147.36,22.57295431]
[1745359735728,6.78371948,147.42,147.32,8.1299]
[1745359735729,0.063,147.42,147.38,22.57295431]
[1745359736130,0.063,147.42,147.32,52.77954886]
[1745359736354,0.063,147.42,147.37,22.57295431]
[1745359736550,22.57295431,147.41,147.33,2.44748143]
[1745359736751,48.57295431,147.41,147.35,22.57295431]
[1745359737350,26.0,147.41,147.36,22.57295431]
[1745359737844,0.063,147.42,147.39,22.57295431]
[1745359738153,26.063,147.42,147.39,22.57295431]
[1745359738453,0.063,147.42,147.38,22.57295431]
[1745359738654,22.57295431,147.41,147.36,22.57295431]
[1745359738857,48.57295431,147.4,147.34,22.57295431]
[1745359739158,22.57295431,147.38,147.32,30.70285431]
[1745359739340,22.57295431,147.39,147.33,22.57295431]
[1745359739949,22.57295431,147.38,147.32,30.70285431]
[1745359740444,26.0,147.4,147.34,22.57295431]
[1745359740646,26.0,147.4,147.36,22.57295431]
[1745359740839,22.57295431,147.41,147.36,22.57295431]
[1745359741039,22.57295431,147.41,147.35,22.57295431]
[1745359741456,48.57295431,147.41,147.35,22.57295431]
[1745359741656,22.57295431,147.39,147.32,8.1299]
[1745359741858,22.57295431,147.4,147.34,22.57295431]
[1745359742157,22.57295431,147.4,147.35,22.57295431]
[1745359742959,48.57295431,147.41,147.35,22.57295431]
[1745359743149,26.0,147.41,147.35,22.57295431]
[1745359743463,22.57295431,147.4,147.35,22.57295431]
[1745359744561,22.57295431,147.4,147.34,22.57295431]
[1745359745465,26.0,147.41,147.35,22.57295431]
[1745359745648,22.57295431,147.4,147.35,22.57295431]
[1745359745965,22.57295431,147.4,147.34,22.57295431]
[1745359746168,22.57295431,147.39,147.34,22.57295431]
[1745359746339,22.57295431,147.4,147.34,22.57295431]
[1745359747456,22.57295431,147.4,147.32,8.1299]
[1745359747457,22.57295431,147.4,147.35,22.57295431]
[1745359747653,48.57295431,147.41,147.32,8.1299]
[1745359747965,48.57295431,147.41,147.36,22.57295431]
[1745359748167,0.063,147.42,147.4,22.57295431]
[1745359748378,0.063,147.42,147.41,22.57295431]
[1745359749039,0.063,147.42,147.4,22.57295431]
[1745359750162,0.063,147.42,147.41,22.57295431]
[1745359751463,0.063,147.42,147.36,44.64964886]
[1745359751670,0.063,147.42,147.4,22.57295431]
[1745359752067,0.063,147.42,147.36,44.64964886]
[1745359752262,0.063,147.42,147.4,22.57295431]
[1745359752567,0.063,147.42,147.39,22.57295431]
[1745359752947,0.063,147.42,147.4,22.57295431]
[1745359753352,0.063,147.42,147.39,22.57295431]
[1745359753552,22.63595431,147.42,147.31,0.03]
[1745359753863,22.57295431,147.4,147.35,22.57295431]
[1745359754165,22.57295431,147.39,147.34,22.57295431]
[1745359754585,22.57295431,147.35,147.31,0.03]
[1745359754785,22.57295431,147.33,147.31,0.03]
[1745359754956,22.57295431,147.32,147.31,0.03]
[1745359755278,26.0,147.35,147.31,0.03]
[1745359755579,22.57295431,147.37,147.31,22.60295431]
[1745359756265,48.57295431,147.38,147.33,22.57295431]
[1745359756576,48.57295431,147.38,147.32,22.57295431]
[1745359756775,26.0,147.38,147.31,0.03]
[1745359757263,26.0,147.38,147.32,22.57295431]
[1745359757573,22.57295431,147.36,147.31,0.03]
[1745359757749,22.57295431,147.36,147.31,22.60295431]
[1745359757951,26.0,147.38,147.31,0.03]
[1745359758164,41.22260317,147.38,147.32,22.57295431]
[1745359758352,22.57295431,147.38,147.32,22.57295431]
[1745359758657,48.57295431,147.37,147.31,0.03]
[1745359758860,26.0,147.37,147.31,0.03]
[1745359759061,22.57295431,147.36,147.31,22.60295431]
[1745359759279,22.57295431,147.36,147.31,0.03]
[1745359759580,22.57295431,147.34,147.31,0.03]
[1745359760179,22.57295431,147.33,147.31,0.03]
[1745359760359,29.36047855,147.33,147.31,0.03]
[1745359760859,29.36046472,147.33,147.31,0.03]
[1745359761064,22.57295431,147.33,147.31,0.03]
[1745359761271,48.57295431,147.34,147.31,0.03]
[1745359761455,6.78572458,147.37,147.31,22.60295431]
[1745359761770,29.35675459,147.41,147.35,22.57295431]
[1745359762079,6.78380028,147.41,147.35,22.57295431]
[1745359762261,6.4427,147.42,147.37,22.57295431]
[1745359762575,0.063,147.42,147.38,22.57295431]
[1745359762953,26.0,147.41,147.39,22.57295431]
[1745359763165,0.063,147.42,147.39,22.57295431]
[1745359763379,26.0,147.41,147.39,22.57295431]
[1745359763676,0.063,147.42,147.39,22.57295431]
[1745359764056,0.063,147.42,147.33,18.64964886]
[1745359764359,22.57295431,147.4,147.32,8.0232]
[1745359764565,48.63595431,147.42,147.36,22.57295431]
[1745359764963,0.063,147.42,147.41,22.57295431]
[1745359765170,0.063,147.42,147.41,45.14590862]
[1745359765355,0.063,147.42,147.41,22.57295431]
[1745359766087,0.063,147.42,147.38,26.0]
[1745359766382,0.063,147.42,147.41,22.57295431]
[1745359767176,0.063,147.42,147.35,22.57295431]
[1745359767359,22.63595431,147.42,147.36,22.57295431]
[1745359767679,22.63595431,147.42,147.33,18.64964886]
[1745359767980,48.57295431,147.41,147.35,22.57295431]
[1745359768190,48.57295431,147.41,147.36,22.57295431]
[1745359768397,26.0,147.41,147.37,22.57295431]
[1745359768562,26.0,147.41,147.38,22.57295431]
[1745359768756,0.063,147.42,147.39,22.57295431]
[1745359769267,22.57295431,147.41,147.33,26.0]
[1745359769465,22.57295431,147.4,147.35,22.57295431]
[1745359769677,22.57295431,147.38,147.33,22.57295431]
[1745359769868,22.57295431,147.38,147.32,22.57295431]
[1745359770057,22.57295431,147.37,147.31,0.03]
[1745359770261,22.57295431,147.37,147.32,2.46266425]
[1745359770665,22.57295431,147.37,147.32,25.03561856]
[1745359770888,0.063,147.42,147.34,22.57295431]
[1745359771091,26.0,147.39,147.34,22.57295431]
[1745359771395,48.57295431,147.39,147.31,0.03]
[1745359771576,48.57295431,147.39,147.34,22.57295431]
[1745359771993,48.57295431,147.39,147.31,0.03]
[1745359771994,26.0,147.39,147.31,26.03]
[1745359772169,48.57295431,147.39,147.31,26.03]
[1745359772368,48.57295431,147.39,147.33,22.57295431]
[1745359772676,48.57295431,147.39,147.34,22.57295431]
[1745359772873,26.0,147.39,147.34,22.57295431]
[1745359773287,26.0,147.41,147.31,51.46789906]
[1745359773492,26.0,147.41,147.36,22.57295431]
[1745359774091,26.0,147.41,147.37,22.57295431]
[1745359774382,0.063,147.42,147.38,22.57295431]
[1745359774771,0.063,147.42,147.41,22.57295431]
[1745359775295,0.063,147.42,147.12,5.51735275]
[1745359775296,1.0,147.22,147.12,5.51735275]
[1745359775588,26.0,147.22,147.15,22.57295431]
[1745359775885,26.0,147.2,147.14,22.57295431]
[1745359776299,22.57295431,147.15,147.1,10.33733383]
[1745359776465,44.64964886,147.15,147.07,10.33733383]
[1745359776667,1.0,147.27,147.07,32.91028814]
[1745359776882,22.57295431,147.28,147.07,32.91028814]
[1745359776883,44.64964886,147.2,147.12,21.57295431]
[1745359777092,26.0,147.16,147.11,22.57295431]
[1745359777385,26.0,147.15,147.1,33.60871689]
[1745359777583,33.60871689,147.21,147.07,43.94605072]
[1745359777584,26.0,147.21,147.13,33.60871689]
[1745359777768,26.0,147.17,147.13,33.60871689]
[1745359777967,26.0,147.17,147.07,69.94605072]
[1745359778290,26.0,147.16,147.11,33.60871689]
[1745359778668,26.0,147.16,147.1,33.60871689]
[1745359779175,59.60871689,147.17,147.07,10.33733383]
[1745359779373,52.25836575,147.16,147.07,10.33733383]
[1745359779573,52.25836575,147.16,147.09,33.60871689]
[1745359779879,26.0,147.12,147.07,38.71733383]
[1745359780074,59.60871689,147.12,147.07,10.33733383]
[1745359780272,26.0,147.12,147.07,10.33733383]
[1745359780492,26.0,147.11,147.08,33.60871689]
[1745359780678,40.07901168,147.29,147.07,33.60871689]
[1745359780881,115.60871689,147.28,147.15,33.60871689]
[1745359781187,33.60871689,147.25,147.15,28.38]
[1745359781374,33.60871689,147.24,147.18,33.60871689]
[1745359781581,18.64964886,147.27,147.18,33.60871689]
[1745359781887,26.0,147.2,147.15,28.38]
[1745359782074,26.0,147.2,147.16,33.60871689]
[1745359782387,33.60871689,147.22,147.16,33.60871689]
[1745359782573,18.64964886,147.27,147.13,28.38]
[1745359782767,26.0,147.21,147.16,33.60871689]
[1745359782968,26.0,147.21,147.13,28.38]
[1745359783400,33.60871689,147.2,147.14,33.60871689]
[1745359783700,33.4897962,147.29,147.15,18.64964886]
[1745359783995,26.0,147.23,147.15,18.64964886]
[1745359784189,33.60871689,147.26,147.2,33.60871689]
[1745359784503,26.0,147.24,147.19,33.60871689]
[1745359784665,59.60871689,147.24,147.18,33.60871689]
[1745359784871,33.60871689,147.24,147.19,33.60871689]
[1745359785087,33.60871689,147.24,147.18,33.60871689]